Cogmind - Beta 17 @@@ ROGUE MODE // 2026.07.24 @ 18:05:35 Player: Crehl Result: Destroyed by S-43 Plague with Heavy Machine Gun Performance ------------- Evolutions (9) 4500 Regions Visited (17) 3400 Robots Destroyed (45) 225 Value Destroyed (1400) 1400 Prototype IDs (26) 520 Alien Tech Used (0) 0 Bonus (909) 909 TOTAL SCORE: 10954 Bonus ------- Follower Combat Kills 109 Entered DSFs 500 Aligned with FarCom 300 Cogmind --------- Core Integrity 0/1600 Matter 299/300 Energy 99/100 System Corruption 5% Temperature Cool (0) Movement Core (50) Location -1/Access Parts ------- > --- POWER (2) -------- (None) > --- PROPULSION (8) --- Gyrokinetic Inverter > --- UTILITY (13) ----- (None) > --- WEAPON (2) ------- (None) > --- INVENTORY (5) ---- Improved Plasma Cutter Peak State ------------ > --- POWER ------------ Light Antimatter Reactor Light Quantum Reactor > --- PROPULSION ------- Gyrokinetic Inverter Gyrokinetic Inverter Gyrokinetic Inverter Gyrokinetic Inverter Gyrokinetic Inverter Improved Gyrokinetic Inverter Impulse Thruster Array > --- UTILITY ---------- Improved Heat Sink Advanced Cooling System Medium Storage Unit Seismic Detector Phase Shifter Improved Phase Shifter Improved Propulsion Shielding Graphene Brace Hacking Suite Hacking Suite Makeshift Hacking Suite Dynamic Insulation System System Restoration Module > --- WEAPON ----------- Enhanced Nova Cannon Mass Driver > --- INVENTORY -------- Micro Antimatter Reactor Micro Antimatter Reactor Light Quantum Reactor Field Propulsion Array Cooled Impulse Thruster High-capacity Matter Pod Micro-nuke Launcher Improved Plasma Cutter [Rating: 141] Favorites ----------- Power Light Nuclear Core Engine Light Ion Engine Power Core Light Nuclear Core Reactor Light Antimatter Reactor Propulsion Gyrokinetic Inverter Treads Light Treads Leg Aluminum Leg Hover Unit Gyrokinetic Inverter Flight Unit Impulse Thruster Array Utility Seismic Detector Device Seismic Detector Storage Medium Storage Unit Processor Enhanced Optical Array Hackware Hacking Suite Protection Improved Light Armor Plating Weapon Advanced Assault Cannon Energy Cannon Enhanced Nova Cannon Ballistic Gun Assault Rifle Ballistic Cannon Advanced Assault Cannon Launcher Micro-nuke Launcher Special Weapon Improved Plasma Cutter Slashing Weapon Makeshift Sword Build | -11 -10 -10 -10 -9 -8 -7 -6 -5 -5 -5 -4 -4 -4 -3 -3 -2 -1 ------- Run | Yrd Mat Min Exi Min Mat Fac Fac Fac Upp Upp Fac Upp Upp Res DSF Res Acc Slots Evolved 18 | . . . . . 4 2 2 2 . . 2 . . 2 . 2 2 Power 1 | . . . . . . . . . . . 1 . . . . . . Propulsion 6 | . . . . . 2 1 2 . . . . . . . . . 1 Utility 11 | . . . . . 2 1 . 2 . . 1 . . 2 . 2 1 Weapon . | . . . . . . . . . . . . . . . . . . Parts Attached 78 | 7 2 3 2 . 7 8 . 9 6 . 9 4 . 3 4 4 10 Power 11 | 1 . 1 . . 1 . . . 2 . 3 . . . 1 . 2 Engine 3 | 1 . . . . . . . . 2 . . . . . . . . Core 4 | . . 1 . . 1 . . . . . 2 . . . . . . Reactor 4 | . . . . . . . . . . . 1 . . . 1 . 2 Propulsion 21 | 2 . . . . 1 5 . 6 . . 2 . . 1 . . 4 Treads 2 | 2 . . . . . . . . . . . . . . . . . Leg 1 | . . . . . 1 . . . . . . . . . . . . Wheel . | . . . . . . . . . . . . . . . . . . Hover 14 | . . . . . . 5 . 6 . . 2 . . . . . 1 Flight 4 | . . . . . . . . . . . . . . 1 . . 3 Utility 28 | 2 . . 1 . 3 2 . 3 1 . 3 2 . 2 3 4 2 Device 14 | 1 . . . . 1 1 . . . . 3 1 . 2 . 3 2 Storage 2 | 1 . . 1 . . . . . . . . . . . . . . Processor 2 | . . . . . . . . 2 . . . . . . . . . Hackware 3 | . . . . . . . . 1 . . . 1 . . . 1 . Protection 7 | . . . . . 2 1 . . 1 . . . . . 3 . . Artifact . | . . . . . . . . . . . . . . . . . . Weapon 18 | 2 2 2 1 . 2 1 . . 3 . 1 2 . . . . 2 Energy Gun . | . . . . . . . . . . . . . . . . . . Energy Cannon 2 | . . . 1 . . . . . . . . . . . . . 1 Ballistic Gun 6 | 2 . 2 . . . . . . 2 . . . . . . . . Ballistic Cannon 4 | . . . . . 2 . . . 1 . . 1 . . . . . Launcher 1 | . . . . . . . . . . . . 1 . . . . . Special Weapon 2 | . 1 . . . . . . . . . . . . . . . 1 Impact Weapon . | . . . . . . . . . . . . . . . . . . Slashing Weapon 3 | . 1 . . . . 1 . . . . 1 . . . . . . Piercing Weapon . | . . . . . . . . . . . . . . . . . . Special Melee Weapon . | . . . . . . . . . . . . . . . . . . Unidentified Prototypes 1 | . . . . . . . . . . . . . . 1 . . . Parts Lost 47 | . . . . . 3 . . . 6 . 8 . . . 1 1 28 Power 8 | . . . . . . . . . 2 . 2 . . . . . 4 Propulsion 13 | . . . . . 2 . . . 2 . . . . . 1 . 8 Utility 19 | . . . . . 1 . . . 1 . 4 . . . . . 13 Weapon 7 | . . . . . . . . . 1 . 2 . . . . 1 3 Highest Loss Streak 27 | . . . . . 3 . . . 3 . 6 . . . 1 1 27 To Critical Strikes . | . . . . . . . . . . . . . . . . . . Average Backups 8 | 4 7 8 8 9 8 9 10 9 8 9 9 10 10 8 8 8 7 Power 1 | . 1 1 1 1 1 1 2 2 1 . . 1 1 1 . 2 2 Propulsion 1 | 3 4 2 1 1 . . . . . . . . . 1 2 2 1 Utility 3 | . . 2 3 5 5 5 6 5 5 5 4 5 6 3 4 1 1 Weapon 1 | . 1 2 2 2 1 1 2 1 1 3 3 2 2 1 1 1 1 Tool/Special . | . . . . . . . . . . . . . . . . . . Unused Backups 17 | . . 3 2 1 1 2 . . 1 . 1 1 . 2 1 . 2 Power 2 | . . . . . 1 . . . . . . . . . . . 1 Propulsion 4 | . . 2 1 . . 1 . . . . . . . . . . . Utility 8 | . . 1 1 . . 1 . . 1 . 1 . . 1 1 . 1 Weapon 3 | . . . . 1 . . . . . . . 1 . 1 . . . Tool/Special . | . . . . . . . . . . . . . . . . . . Average Slot Usage (%) 90 | . 100 100 100 100 83 71 86 94 91 82 79 92 100 99 100 92 88 Engine 1 | . 14 2 . . . . . . 2 5 2 . . . . . . Core 5 | . . 11 14 14 9 7 6 5 2 . 3 5 5 4 2 . . Reactor 2 | . . . . . . . . . . . 1 5 5 4 6 8 7 Treads 9 | . 28 28 28 28 14 . . . . . . . . . . . . Leg 1 | . . . . . 8 5 . . . . . . . . . . . Hover 16 | . . . . . . 9 33 35 36 29 32 36 36 33 33 26 23 Device 17 | . 14 14 14 14 9 16 20 17 17 17 9 17 21 27 20 27 29 Storage 7 | . 14 14 14 14 9 7 6 5 5 5 5 5 5 4 4 4 3 Processor 1 | . . . . . . . . 5 5 5 5 5 5 4 4 . . Hackware 4 | . . . . . . . . 4 5 5 5 6 10 9 9 12 11 Protection 3 | . . . . . 15 7 6 5 2 . 2 . . . 7 4 3 Ballistic Gun 8 | . 23 28 27 28 3 . . . 2 11 5 . . . . . . Ballistic Cannon 4 | . . . . . 14 13 6 5 6 . 1 4 5 4 4 4 1 Slashing Weapon 1 | . 3 . . . . 1 6 5 1 . 2 5 5 4 4 3 . Peak Build Rating 141 | 7 7 10 17 11 24 39 39 72 73 65 89 99 99 112 110 112 141 Average Rating 55 | 5 7 9 10 10 20 27 39 60 68 65 77 92 99 109 105 108 129 On Entrance 52 | . 7 7 10 11 11 22 39 39 72 65 65 89 99 99 110 94 108 Avg Prop Armor Cover (%) 2 | . . . . . 3 4 . 2 1 1 1 1 5 5 4 . 3 Naked Turns . | . . . . . . . . . . . . . . . . . . Heaviest Build 72 | 12 13 15 23 19 34 52 30 30 34 33 43 43 43 46 51 52 72 Greatest Support 93 | 40 40 40 40 40 40 39 39 71 33 33 78 67 78 56 78 67 93 Greatest Overweight (x) 3 | 1 . . . . 3 3 . . 1 . . . . 1 . . 1 Average Overweight (x) . | . . . . . . 1 . . . . . . . . . . . Largest Inventory Capacity 10 | 8 8 8 10 10 10 10 10 10 10 10 10 10 10 10 10 10 10 Average Capacity 9 | 7 8 8 8 10 10 10 10 10 10 10 10 10 10 10 10 10 9 Most Carried 10 | 6 8 8 10 10 10 10 10 10 10 9 10 10 10 10 10 10 10 Average Carried 8 | 4 7 7 8 9 9 9 10 9 8 9 9 9 10 9 9 9 8 Final Capacity 10 | 8 8 8 10 10 10 10 10 10 10 10 10 10 10 10 10 10 5 Final Carried 10 | 6 8 8 10 10 9 10 10 10 9 9 10 10 10 10 10 10 1 Class Distribution -------------------- 68% | Mutant 18% | Hacker-Mutant 13% | Scavenger-Mutant Dominant Class ---------------- Mutant | -10/Materials Mutant | -10/Mines Mutant | -10/Exiles Mutant | -9/Mines Mutant | -8/Materials Mutant | -7/Factory Mutant | -6/Factory Mutant | -5/Factory Mutant | -5/Upper Caves Mutant | -5/Upper Caves Mutant | -4/Factory Scavenger-Mutant | -4/Upper Caves Scavenger-Mutant | -4/Upper Caves Scavenger-Mutant | -3/Research Hacker-Mutant | -3/DSF Hacker-Mutant | -2/Research Hacker-Mutant | -1/Access Resources | -11 -10 -10 -10 -9 -8 -7 -6 -5 -5 -5 -4 -4 -4 -3 -3 -2 -1 ----------- Run | Yrd Mat Min Exi Min Mat Fac Fac Fac Upp Upp Fac Upp Upp Res DSF Res Acc Matter Collected 2090 | 253 49 236 120 8 146 32 . 303 369 1 225 109 . . . 105 134 Remotely . | . . . . . . . . . . . . . . . . . . Salvage Created 1381 | 53 . 306 . 40 161 29 . . 225 . 270 60 . . . 22 215 Parts 77 | 5 . 24 . 2 12 3 . . 1 . 19 . . . . 1 10 Haulers Intercepted 1 | . . . . . . . . . . . . . . . . . 1 Recyclers Shooed 1 | . . . . . . . . . . . . . . . . 1 . Parts Field Recycled . | . . . . . . . . . . . . . . . . . . Retrieved Matter . | . . . . . . . . . . . . . . . . . . Parts Self-Destructed 1 | . . . . . . . . . 1 . . . . . . . . Prevented 1 | . . . . . . . . . . 1 . . . . . . . Parts Restored . | . . . . . . . . . . . . . . . . . . Kills | -11 -10 -10 -10 -9 -8 -7 -6 -5 -5 -5 -4 -4 -4 -3 -3 -2 -1 ------- Run | Yrd Mat Min Exi Min Mat Fac Fac Fac Upp Upp Fac Upp Upp Res DSF Res Acc Combat Hostiles Destroyed 35 | . . 13 . 1 7 . . . 7 . 5 1 . . . . 1 Melee 2 | . . . . . . . . . . . 2 . . . . . . Guns 17 | . . 13 . 1 . . . . . . 3 . . . . . . Cannons 14 | . . . . . 7 . . . 7 . . . . . . . . AOE 1 | . . . . . . . . . . . . 1 . . . . . Classes Destroyed 11 | 1 . 2 . . 3 . . . 1 . 1 . . . . 1 2 Worker 4 | . . . . . . . . . . . . . . . . 1 3 Tunneler 2 | 2 . . . . . . . . . . . . . . . . . Hauler 1 | . . . . . . . . . . . . . . . . . 1 Operator 1 | . . . . . 1 . . . . . . . . . . . . Watcher 2 | . . . . . 1 1 . . . . . . . . . . . Swarmer 15 | . . 10 . . 3 . . . 1 . 1 . . . . . . Grunt 11 | . . 3 . 1 1 . . . 4 . 2 . . . . . . Brawler 2 | . . . . . . . . . 2 . . . . . . . . Sentry 4 | . . . . . 3 . . . . . . 1 . . . . . Hunter 1 | . . . . . . . . . . . . . . . . . 1 Programmer 2 | . . . . . . . . . . . 2 . . . . . . Best Kill Streak 3 | 2 . 3 . 1 3 1 . . 2 . 3 1 . . . 1 2 Combat Bots Only 3 | . . 3 . 1 3 . . . 2 . 3 1 . . . . 1 Max Kills in Single Turn 2 | 1 . 1 . 1 1 1 . . 1 . 1 1 . . . 1 2 Gunslinging . | . . . . . . . . . . . . . . . . . . Exploded 1 | . . . . . . . . . . . . 1 . . . . . Melee 1 | . . . . . . . . . . . 1 . . . . . . Uniques/NPCs Destroyed . | . . . . . . . . . . . . . . . . . . Combat | -11 -10 -10 -10 -9 -8 -7 -6 -5 -5 -5 -4 -4 -4 -3 -3 -2 -1 -------- Run | Yrd Mat Min Exi Min Mat Fac Fac Fac Upp Upp Fac Upp Upp Res DSF Res Acc Hostile Shots Fired 681 | . 3 67 . 2 55 . . 6 64 10 64 2 7 . 8 14 379 Missed 304 | . . 20 . 1 13 . . 4 21 3 14 1 4 . 2 8 213 Hits 377 | . 3 47 . 1 42 . . 2 43 7 50 1 3 . 6 6 166 Melee 5 | . . . . . . . . . 1 . . . . . 4 . . Projectile 372 | . 3 47 . 1 42 . . 2 42 7 50 1 3 . 2 6 166 AOE 2 | . . . . . . . . . . . . . . . 2 . . Critical Strikes 15 | . . . . . 1 . . . 1 . 5 . 1 . 2 . 5 Actively Blocked 4 | . . . . . . . . . . . . . . . . . 4 Damage Taken 7381 | . 33 447 . 12 616 . . 41 850 52 980 22 79 . 208 183 3858 Core 2269 | . 11 51 . 12 91 . . . 155 29 207 . 20 . 12 60 1621 Absorbed by Shields 25 | . . . . . . . . . . . . . . . 25 . . Redirected to Shielding 114 | . . . . . . . . . . . . . . . 33 2 79 Core Remaining (%) 89 | 100 . . . 70 83 100 100 . . 81 . . 80 . 99 95 . Volleys Fired 144 | 8 . 31 . 2 25 2 . . 31 . 15 2 . . . 2 26 Largest 2 | 2 . 2 . 2 2 2 . . 2 . 2 1 . . . 1 1 Hottest 120 | 40 . 40 . 40 120 80 . . 80 . 66 49 . . . 47 120 Shots Fired 241 | 16 . 62 . 4 43 4 . . 53 . 29 2 . . . 2 26 Gun 115 | 16 . 62 . 4 4 . . . . . 29 . . . . . . Cannon 118 | . . . . . 39 4 . . 53 . . . . . . 2 20 Launcher 5 | . . . . . . . . . . . . 2 . . . . 3 Special 3 | . . . . . . . . . . . . . . . . . 3 Kinetic 218 | 16 . 62 . 4 41 4 . . 53 . 29 . . . . 2 7 Thermal 18 | . . . . . 2 . . . . . . . . . . . 16 Explosive 5 | . . . . . . . . . . . . 2 . . . . 3 Electromagnetic . | . . . . . . . . . . . . . . . . . . Robot Hit Streak 16 | 5 . 5 . 2 16 1 . . 11 . 10 . . . . . 5 Robot Miss Streak 5 | 3 . 5 . 1 2 3 . . 2 . 2 . . . . . 1 Penetration Max 1 | . . . . . . . . . . . 1 . . . . . . Secondary Targets 2 | . . 2 . . . . . . . . . . . . . . . Max Gunslinging Chain 1 | . . 1 . . . . . . . . . . . . . . . Shots Hit Robots 147 | 10 1 31 . 2 32 1 . . 40 . 25 . . . . . 5 Core Hits 66 | 3 . 17 . 2 7 1 . . 13 . 11 2 . . . 1 9 Critical Kills . | . . . . . . . . . . . . . . . . . . Critical Parts Destroyed 3 | . . 1 . . . . . . . . 2 . . . . . . Critical Strikes 8 | . . 1 . . 4 . . . 1 . 2 . . . . . . Destroy 3 | . . 1 . . . . . . . . 2 . . . . . . Blast 5 | . . . . . 4 . . . 1 . . . . . . . . Melee Attacks 47 | . 9 . . . . 3 . 5 . . 7 4 . 5 1 13 . Impact . | . . . . . . . . . . . . . . . . . . Slashing 47 | . 9 . . . . 3 . 5 . . 7 4 . 5 1 13 . Piercing . | . . . . . . . . . . . . . . . . . . Sneak Attacks 1 | . 1 . . . . . . . . . . . . . . . . Combat Hostiles . | . . . . . . . . . . . . . . . . . . Follow-up Attacks . | . . . . . . . . . . . . . . . . . . Damage Inflicted 4098 | 111 47 421 . 28 847 23 . . 1090 . 759 85 . . . 85 602 Guns 1200 | 111 . 421 . 28 25 . . . . . 615 . . . . . . Cannons 2058 | . . . . . 822 23 . . 1090 . . . . . . . 123 Explosions 441 | . . . . . . . . . . . . 85 . . . . 356 Melee 191 | . 47 . . . . . . . . . 144 . . . . . . Ramming 208 | . . . . . . . . . . . . . . . . 85 123 Kinetic 3139 | 111 . 421 . 28 773 23 . . 1090 . 615 . . . . . 78 Thermal 119 | . . . . . 74 . . . . . . . . . . . 45 Explosive 441 | . . . . . . . . . . . . 85 . . . . 356 Electromagnetic . | . . . . . . . . . . . . . . . . . . Impact . | . . . . . . . . . . . . . . . . . . Slashing 191 | . 47 . . . . . . . . . 144 . . . . . . Piercing . | . . . . . . . . . . . . . . . . . . Highest Corruption 4 | . . . . . . . . 1 2 2 3 3 3 . . 1 4 Average Corruption 2 | . . . . . . . . 1 1 2 2 3 3 . . 1 3 Corruption Purged . | . . . . . . . . . . . . . . . . . . Corruption Blocked . | . . . . . . . . . . . . . . . . . . Effects 18 | . . . . . . . . . 6 1 4 5 . . . . 2 Message Errors 7 | . . . . . . . . . 2 . 3 2 . . . . . Matter Fused 7 | . . . . . . . . . 2 1 1 1 . . . . 2 Parts Rejected 1 | . . . . . . . . . 1 . . . . . . . . Parts Fused 1 | . . . . . . . . . . . . 1 . . . . . Data Loss (minor) 1 | . . . . . . . . . . . . 1 . . . . . Alerts 1 | . . . . . . . . . 1 . . . . . . . . Overload Shots . | . . . . . . . . . . . . . . . . . . Overflow Damage 119 | . 7 . . . 47 . . . 36 . . . . . . . 29 Projectiles 83 | . . . . . 47 . . . 36 . . . . . . . . Explosions 6 | . . . . . . . . . . . . . . . . . 6 Melee 30 | . 7 . . . . . . . . . . . . . . . 23 Knockbacks 12 | . . . . . 1 . . . 9 . . . . . . . 2 Impact 1 | . . . . . . . . . . . . . . . . . 1 Kinetic 11 | . . . . . 1 . . . 9 . . . . . . . 1 Secondary . | . . . . . . . . . . . . . . . . . . Self-Inflicted Damage 102 | . . . . . . . . . . . . . . . . 42 60 Shots . | . . . . . . . . . . . . . . . . . . Rammed 7 | . . . . . . . . . . . . . . . . 3 4 Targets Rammed 7 | . . . . . . . . . . . . . . . . 3 4 Kicked . | . . . . . . . . . . . . . . . . . . Crushed . | . . . . . . . . . . . . . . . . . . Highest Temperature 387 | . . 10 . 10 387 . . . 16 . 312 9 182 . . 9 88 Average Temperature 99 | . . 3 . 4 161 . . . 4 . 114 6 91 . . 9 30 Received Heat Transfer 1024 | . 18 78 . 6 252 . . . 378 . 148 . 36 . . . 108 Effects 10 | . . . . . 7 . . . . . 3 . . . . . . Shutdowns 2 | . . . . . 2 . . . . . . . . . . . . Energy Bleed 1 | . . . . . 1 . . . . . . . . . . . . Interference 6 | . . . . . 3 . . . . . 3 . . . . . . Short Circuit 1 | . . . . . 1 . . . . . . . . . . . . Siege Activations . | . . . . . . . . . . . . . . . . . . Martial Activations . | . . . . . . . . . . . . . . . . . . Shielding Activations . | . . . . . . . . . . . . . . . . . . Robots Disrupted . | . . . . . . . . . . . . . . . . . . Combat Hostiles . | . . . . . . . . . . . . . . . . . . Robots Corrupted 1 | . . . . . . . . . . . . . . . . . 1 Combat Hostiles 1 | . . . . . . . . . . . . . . . . . 1 Parts Fried . | . . . . . . . . . . . . . . . . . . Impact Corruptions 3 | . . . . . . . . . . . . . . . . 1 2 Robots Melted . | . . . . . . . . . . . . . . . . . . Combat Hostiles . | . . . . . . . . . . . . . . . . . . Parts Melted . | . . . . . . . . . . . . . . . . . . Heat Transferred 197 | . . . . . 160 . . . . . . . . . . . 37 Parts Sabotaged . | . . . . . . . . . . . . . . . . . . Parts Stolen . | . . . . . . . . . . . . . . . . . . Parts Stripped . | . . . . . . . . . . . . . . . . . . Power Chain Reactions . | . . . . . . . . . . . . . . . . . . Alert | -11 -10 -10 -10 -9 -8 -7 -6 -5 -5 -5 -4 -4 -4 -3 -3 -2 -1 ------- Run | Yrd Mat Min Exi Min Mat Fac Fac Fac Upp Upp Fac Upp Upp Res DSF Res Acc Maximum Alert Level 1 | . . . . . . . . . . . . . . . . . 1 Low Security (%) 99 | 100 100 100 . 100 100 100 100 100 . . 100 . . 100 100 100 99 Level 1 . | . . . . . . . . . . . . . . . . . . Level 2 . | . . . . . . . . . . . . . . . . . . Level 3 . | . . . . . . . . . . . . . . . . . . Level 4 . | . . . . . . . . . . . . . . . . . . Level 5 . | . . . . . . . . . . . . . . . . . . High Security . | . . . . . . . . . . . . . . . . . . Max Security . | . . . . . . . . . . . . . . . . . . Peak Influence 219 | 5 17 97 . 154 78 7 5 14 . . 46 . . 10 17 39 219 Initial 32 | . . . . . 32 3 . . . . 31 . . . . 3 18 Average 15 | . 1 27 . 109 16 . . . . . 12 . . . 8 4 22 Influence Increases 2034 | 10 35 382 . 154 214 10 5 24 265 . 127 20 . 20 17 117 634 Destroy 0b10 Robot/C 800 | . . 280 . 100 140 . . . 140 . 100 20 . . . . 20 Destroy 0b10 Robot/NC 55 | 10 . 5 . . 10 5 . . . . . . . . . 5 20 Destroy Leader 156 | . . 50 . 20 42 2 . . 20 . 10 . . . . . 12 Allied During Kill 21 | . . 2 . 19 . . . . . . . . . . . . . Successful Hack 77 | . 17 . . . . . 5 14 . . 9 . . 10 . 22 . Disable Machine 60 | . . . . 15 15 . . . . . . . . . . . 30 Destroy Structure 265 | . 3 . . . 7 3 . 10 . . 8 . . 10 2 45 177 Partial Spotted 15 | . . . . . . . . . . . . . . . . 15 . Lose Combat Pursuer 585 | . 15 45 . . . . . . 105 . . . . . 15 30 375 Influence Decreases 1826 | 10 35 321 61 70 289 18 6 22 192 25 177 20 . 20 10 93 457 Entered New Map 173 | . . . 61 . 52 6 1 . 2 15 19 . . . . 4 13 Time Decay 1263 | 10 35 301 . 70 217 12 5 22 150 10 138 20 . 20 . 89 164 Lost Part 370 | . . . . . 20 . . . 40 . 20 . . . 10 . 280 Lost Ally 20 | . . 20 . . . . . . . . . . . . . . . Squads Dispatched 13 | . . . . . . 1 . 1 . . 2 . . . 1 3 5 Investigation . | . . . . . . . . . . . . . . . . . . Extermination 9 | . . . . . . 1 . 1 . . 2 . . . . 2 3 Reinforcement 4 | . . . . . . . . . . . . . . . 1 1 2 Assault . | . . . . . . . . . . . . . . . . . . Garrison . | . . . . . . . . . . . . . . . . . . Intercept . | . . . . . . . . . . . . . . . . . . Searches Triggered . | . . . . . . . . . . . . . . . . . . Construction Impeded . | . . . . . . . . . . . . . . . . . . Haulers Reinforced . | . . . . . . . . . . . . . . . . . . Active Scanning Responses . | . . . . . . . . . . . . . . . . . . Cargo Convoy Interrupts . | . . . . . . . . . . . . . . . . . . Stealth | -11 -10 -10 -10 -9 -8 -7 -6 -5 -5 -5 -4 -4 -4 -3 -3 -2 -1 --------- Run | Yrd Mat Min Exi Min Mat Fac Fac Fac Upp Upp Fac Upp Upp Res DSF Res Acc Distress Signals 4 | . 1 . . . 1 . . . . . . . . . . . 2 Communications Jammed . | . . . . . . . . . . . . . . . . . . Distress Signals . | . . . . . . . . . . . . . . . . . . Times Spotted 126 | . 4 19 . 3 13 2 . 2 9 1 5 1 2 . 4 3 58 Peak Tracking Total 33 | . 3 3 . 2 6 1 . 2 7 1 3 1 2 . 3 4 33 Tactical Retreats 15 | . 1 2 . . . . . . 3 . . . . . 1 1 7 Traps | -11 -10 -10 -10 -9 -8 -7 -6 -5 -5 -5 -4 -4 -4 -3 -3 -2 -1 ------- Run | Yrd Mat Min Exi Min Mat Fac Fac Fac Upp Upp Fac Upp Upp Res DSF Res Acc Traps Triggered 4 | . . . . . 1 . . . . . 1 . . . 2 . . Indirectly . | . . . . . . . . . . . . . . . . . . Trap Hack Attempts . | . . . . . . . . . . . . . . . . . . Triggered . | . . . . . . . . . . . . . . . . . . Disarmed . | . . . . . . . . . . . . . . . . . . Reprogrammed . | . . . . . . . . . . . . . . . . . . Reused . | . . . . . . . . . . . . . . . . . . Traps Extracted . | . . . . . . . . . . . . . . . . . . Installed . | . . . . . . . . . . . . . . . . . . Triggered . | . . . . . . . . . . . . . . . . . . Machines | -11 -10 -10 -10 -9 -8 -7 -6 -5 -5 -5 -4 -4 -4 -3 -3 -2 -1 ---------- Run | Yrd Mat Min Exi Min Mat Fac Fac Fac Upp Upp Fac Upp Upp Res DSF Res Acc Machines Disabled 4 | . . . . 1 1 . . . . . . . . . . . 2 Max in Single Turn 1 | . . . . . 1 . . . . . . . . . . . 1 Garrison Access 4 | . . . . . . . 1 1 . . . . . 1 . . 1 Energy Cycler 1 | . . . . . . . . . . . . . . . . . 1 Machines Repaired . | . . . . . . . . . . . . . . . . . . Machines Dismantled . | . . . . . . . . . . . . . . . . . . Machines Sabotaged . | . . . . . . . . . . . . . . . . . . Overloaded Fab Kills . | . . . . . . . . . . . . . . . . . . Hacking | -11 -10 -10 -10 -9 -8 -7 -6 -5 -5 -5 -4 -4 -4 -3 -3 -2 -1 --------- Run | Yrd Mat Min Exi Min Mat Fac Fac Fac Upp Upp Fac Upp Upp Res DSF Res Acc Machines Accessed 34 | . 2 . 1 . 3 5 4 3 1 . 2 . . 3 . 6 4 Terminals 19 | . 2 . . . 1 3 2 2 . . 2 . . 2 . 4 1 Fabricators 1 | . . . . . . 1 . . . . . . . . . . . Repair Stations 1 | . . . . . . 1 . . . . . . . . . . . Recycling Units 4 | . . . . . 1 . . . . . . . . . . 2 1 Scanalyzers 3 | . . . . . 1 . 1 . . . . . . . . . 1 Garrison Access 4 | . . . . . . . 1 1 . . . . . 1 . . 1 Total Hacks 54 | . 8 . 1 . 7 6 9 3 1 . 2 . . 4 . 9 4 Successful 28 | . 4 . 1 . 4 1 3 2 1 . 2 . . 3 . 6 1 Failed 26 | . 4 . . . 3 5 6 1 . . . . . 1 . 3 3 Catastrophic 7 | . 1 . . . 1 1 1 . . . . . . . . 1 2 Database Lockouts . | . . . . . . . . . . . . . . . . . . Manual 13 | . 4 . 1 . . . 4 . . . 1 . . . . 2 1 Terminals 33 | . 8 . . . 2 4 5 2 . . 2 . . 3 . 6 1 Fabricators 1 | . . . . . . 1 . . . . . . . . . . . Repair Stations 1 | . . . . . . 1 . . . . . . . . . . . Recycling Units 6 | . . . . . 2 . . . . . . . . . . 3 1 Scanalyzers 7 | . . . . . 3 . 3 . . . . . . . . . 1 Garrison Access 4 | . . . . . . . 1 1 . . . . . 1 . . 1 Terminal Hacks 20 | . 4 . 1 . 1 1 2 1 1 . 2 . . 2 . 5 . Record 3 | . . . . . . . . . . . . . . . . 3 . Robot Analysis 3 | . 2 . . . . . . 1 . . . . . . . . . Prototype ID Bank 1 | . 1 . . . . . . . . . . . . . . . . Open Door 1 | . . . . . . . . . 1 . . . . . . . . Open DSF 4 | . . . . . . 1 . . . . 1 . . 1 . 1 . Level Access Points 1 | . . . . . . . . . . . . . . . . 1 . Terminal Index 3 | . . . . . . . 1 . . . 1 . . 1 . . . Alert Level 1 | . . . . . 1 . . . . . . . . . . . . Hauler Manifests 2 | . 1 . . . . . 1 . . . . . . . . . . Proto ID Catalog 1 | . . . 1 . . . . . . . . . . . . . . Fabricator Hacks . | . . . . . . . . . . . . . . . . . . Repair Station Hacks . | . . . . . . . . . . . . . . . . . . Recycling Unit Hacks 3 | . . . . . 2 . . . . . . . . . . 1 . Retrieve Components 3 | . . . . . 2 . . . . . . . . . . 1 . Scanalyzer 1 | . . . . . 1 . . . . . . . . . . . . Retrieve Study 1 | . . . . . 1 . . . . . . . . . . . . Garrison Access Hacks 4 | . . . . . . . 1 1 . . . . . 1 . . 1 Seal Access 4 | . . . . . . . 1 1 . . . . . 1 . . 1 Unauthorized Hacks . | . . . . . . . . . . . . . . . . . . Terminals . | . . . . . . . . . . . . . . . . . . Fabricators . | . . . . . . . . . . . . . . . . . . Repair Stations . | . . . . . . . . . . . . . . . . . . Recycling Units . | . . . . . . . . . . . . . . . . . . Scanalyzers . | . . . . . . . . . . . . . . . . . . Garrison Access . | . . . . . . . . . . . . . . . . . . Data Cores Recovered 1 | . . . . . 1 . . . . . . . . . . . . Used . | . . . . . . . . . . . . . . . . . . Hacking Detections 25 | . 2 . . . 3 4 3 2 . . 1 . . 2 . 5 3 Full Trace Events . | . . . . . . . . . . . . . . . . . . Feedback Events . | . . . . . . . . . . . . . . . . . . Feedback Blocked . | . . . . . . . . . . . . . . . . . . Robot Schematics Acquired . | . . . . . . . . . . . . . . . . . . Robots Built . | . . . . . . . . . . . . . . . . . . Authchips . | . . . . . . . . . . . . . . . . . . Time . | . . . . . . . . . . . . . . . . . . Total Robot Build Rating . | . . . . . . . . . . . . . . . . . . Part Schematics Acquired . | . . . . . . . . . . . . . . . . . . Parts Built . | . . . . . . . . . . . . . . . . . . Authchips . | . . . . . . . . . . . . . . . . . . Time . | . . . . . . . . . . . . . . . . . . Total Part Build Rating . | . . . . . . . . . . . . . . . . . . Part Studies Acquired 1 | . . . . . 1 . . . . . . . . . . . . Parts Repaired . | . . . . . . . . . . . . . . . . . . Time . | . . . . . . . . . . . . . . . . . . Parts Recycled . | . . . . . . . . . . . . . . . . . . Recycled Matter . | . . . . . . . . . . . . . . . . . . Retrieved Matter . | . . . . . . . . . . . . . . . . . . Retrieved Components . | . . . . . . . . . . . . . . . . . . Parts Scanalyzed . | . . . . . . . . . . . . . . . . . . Part Schematics Acquired . | . . . . . . . . . . . . . . . . . . Parts Damaged . | . . . . . . . . . . . . . . . . . . Bothacking | -11 -10 -10 -10 -9 -8 -7 -6 -5 -5 -5 -4 -4 -4 -3 -3 -2 -1 ------------ Run | Yrd Mat Min Exi Min Mat Fac Fac Fac Upp Upp Fac Upp Upp Res DSF Res Acc Used RIF Installer . | . . . . . . . . . . . . . . . . . . Robots Hacked . | . . . . . . . . . . . . . . . . . . Non-combat . | . . . . . . . . . . . . . . . . . . Combat . | . . . . . . . . . . . . . . . . . . Robot Hacks Applied . | . . . . . . . . . . . . . . . . . . Relay Couplers Released . | . . . . . . . . . . . . . . . . . . Fabnet Peak Effective % . | . . . . . . . . . . . . . . . . . . Robots Rewired . | . . . . . . . . . . . . . . . . . . Allies Hacked . | . . . . . . . . . . . . . . . . . . Hacks Repelled . | . . . . . . . . . . . . . . . . . . Allies | -11 -10 -10 -10 -9 -8 -7 -6 -5 -5 -5 -4 -4 -4 -3 -3 -2 -1 -------- Run | Yrd Mat Min Exi Min Mat Fac Fac Fac Upp Upp Fac Upp Upp Res DSF Res Acc Total Allies 4 | . . 4 . . . . . . . . . . . . . . . Largest Group 3 | . . 3 3 3 2 . . . . . . . . . . . . Highest-Rated Group 40 | . . 40 40 40 24 . . . . . . . . . . . . Highest-Rated Ally 31 | . . 31 16 16 16 . . . . . . . . . . . . Total Orders . | . . . . . . . . . . . . . . . . . . Ally Attacks 34 | . . 8 . 14 12 . . . . . . . . . . . . Total Damage 408 | . . 167 . 143 98 . . . . . . . . . . . . Kills 5 | . . 1 . 4 . . . . . . . . . . . . . Allies Corrupted . | . . . . . . . . . . . . . . . . . . Allies Melted . | . . . . . . . . . . . . . . . . . . Intel | -11 -10 -10 -10 -9 -8 -7 -6 -5 -5 -5 -4 -4 -4 -3 -3 -2 -1 ------- Run | Yrd Mat Min Exi Min Mat Fac Fac Fac Upp Upp Fac Upp Upp Res DSF Res Acc Active Infowar (turns) 6608 | 59 422 1124 438 158 778 142 93 413 480 32 529 321 40 445 59 191 884 Optics 2306 | . . . . . . . . 413 480 32 516 321 40 445 59 . . Seismic 5521 | 59 422 1124 438 158 778 142 93 413 480 32 307 . . . . 191 884 Robot Analysis Total 3 | . 2 . . . . . . 1 . . . . . . . . . Derelict Logs Recovered 4 | . . 1 . . . . . . 1 . . 1 1 . . . . Drone Launches . | . . . . . . . . . . . . . . . . . . Drone Recoveries . | . . . . . . . . . . . . . . . . . . Exploration | -11 -10 -10 -10 -9 -8 -7 -6 -5 -5 -5 -4 -4 -4 -3 -3 -2 -1 ------------- Run | Yrd Mat Min Exi Min Mat Fac Fac Fac Upp Upp Fac Upp Upp Res DSF Res Acc Turns Passed 7663 | 160 422 1124 438 158 954 584 93 413 480 32 529 321 40 445 65 424 981 Spaces Moved 6392 | 77 244 590 267 86 433 366 145 413 476 52 475 505 78 379 83 608 1115 Core 44 | 3 . . . . . . . . . . . . . . . . 41 Treads 1649 | 74 244 590 267 86 388 . . . . . . . . . . . . Legs 172 | . . . . . 45 127 . . . . . . . . . . . Wheels . | . . . . . . . . . . . . . . . . . . Hover 4466 | . . . . . . 239 145 413 476 52 475 505 78 379 83 608 1013 Flight 61 | . . . . . . . . . . . . . . . . . 61 Fastest Speed 37 | 50 160 160 160 160 160 44 44 38 58 62 44 48 44 54 44 50 37 Average Speed 88 | 157 160 160 160 160 177 149 44 46 67 62 52 51 50 54 48 50 54 Slowest Speed 330 | 160 160 160 160 160 330 330 44 58 104 62 62 55 54 104 54 50 94 Overloaded Moves . | . . . . . . . . . . . . . . . . . . Propulsion Burnouts . | . . . . . . . . . . . . . . . . . . Robots Hopped . | . . . . . . . . . . . . . . . . . . Potential Cave-ins . | . . . . . . . . . . . . . . . . . . Cave-ins Triggered . | . . . . . . . . . . . . . . . . . . Exploration Rate (%) 32 | 5 41 99 61 20 35 10 4 8 60 13 10 67 19 9 81 16 27 Regions Visited 17 Branch Regions 7 Pre-discovered Areas 2 | . . 2 . . . . . . . . . . . . . . . Known Exits Taken 3 | . . . . . . . . . . . 1 . . 1 . 1 . Unknown Exits Taken 13 | 1 1 1 1 1 1 1 1 1 1 1 . 1 1 . . . . Scrap Searched 7 | . . 1 . . . . . . 1 . . 4 1 . . . . Spaces Dug 49 | . 3 . . . . 3 . 5 . . 1 4 . 5 1 16 11 Terrain Destroyed 129 | . 3 . . . 3 3 . 5 3 . 3 24 . 5 1 16 63 Melee 35 | . 3 . . . . 3 . 5 . . 1 4 . 5 1 13 . Projectile 23 | . . . . . 3 . . . 3 . 2 . . . . 3 12 AOE 71 | . . . . . . . . . . . . 20 . . . . 51 Terrain Rammed . | . . . . . . . . . . . . . . . . . . Walls Destroyed . | . . . . . . . . . . . . . . . . . . Machines Disabled . | . . . . . . . . . . . . . . . . . . Actions | -11 -10 -10 -10 -9 -8 -7 -6 -5 -5 -5 -4 -4 -4 -3 -3 -2 -1 --------- Run | Yrd Mat Min Exi Min Mat Fac Fac Fac Upp Upp Fac Upp Upp Res DSF Res Acc Total 8094 | 98 257 710 278 104 577 392 173 627 581 51 715 559 78 614 107 711 1462 Wait 1315 | 1 . 79 . 12 100 5 29 193 58 . 197 41 1 221 7 77 294 Move 6376 | 76 243 589 266 85 432 365 144 412 475 51 474 504 77 378 83 607 1115 Hop . | . . . . . . . . . . . . . . . . . . Pick Up 54 | 6 2 3 4 2 6 5 . 3 3 . 9 1 . 2 1 3 4 Fast Attach 40 | 7 1 . 1 . 2 6 . 3 3 . 5 3 . 2 3 2 2 Attach 30 | . . . . . 5 . . 2 5 . 6 . . 2 . 2 8 Detach 5 | . . . . . . . . . 2 . . . . 1 1 . 1 Swap 23 | . 1 3 3 . 2 2 . 4 1 . . 2 . . 1 1 3 Drop 46 | . 1 5 4 3 5 4 . 5 3 . 2 2 . 3 4 1 4 Fire 144 | 8 . 31 . 2 25 2 . . 31 . 15 2 . . . 2 26 Melee 47 | . 9 . . . . 3 . 5 . . 7 4 . 5 1 13 . Ram 7 | . . . . . . . . . . . . . . . . 3 4 Kick . | . . . . . . . . . . . . . . . . . . Crush . | . . . . . . . . . . . . . . . . . . Escape Stasis 6 | . . . . . . . . . . . . . . . 6 . . Rewire . | . . . . . . . . . . . . . . . . . . Trap . | . . . . . . . . . . . . . . . . . . Miscellaneous 1 | . . . . . . . . . . . . . . . . . 1 Route ------- -11/Scrapyard -10/Materials (discovered 2 exits: [*Min] / [*Sub]) -10/Mines (discovered 3 exits: [*Mat x2] / *Exi) -10/Exiles (discovered 2 exits: [*Min x2]) -9/Mines -8/Materials -7/Factory -6/Factory -5/Factory (discovered 2 exits: *Fac / *Upp) -5/Upper Caves -5/Upper Caves -4/Factory -4/Upper Caves -4/Upper Caves -3/Research (discovered 2 exits: Res / DSF) -3/DSF -2/Research (discovered 3 exits: *Acc x3) -1/Access History --------- Turn | Location | Event 10 | -11/Scrapyard | Discovered new exit (range 16) 161 | -11/Scrapyard | Entered Materials 242 | -10/Materials | Discovered new exit (range 16) 314 | -10/Materials | Build established: Mutant 429 | -10/Materials | Discovered new exit (range 13) 583 | -10/Materials | Entered Mines 584 | -10/Mines | Assembled infested the area 595 | -10/Mines | Escorted by a lone wolf Derelict 615 | -10/Mines | Learned location of Storage (-8) 624 | -10/Mines | Discovered new exit (range 5) 645 | -10/Mines | Met 8R-AWN 1034 | -10/Mines | Learned Materials interactive machine intel 1055 | -10/Mines | Discovered new exit (range 13) 1215 | -10/Mines | Discovered new exit (range 15) 1625 | -10/Mines | Assisted by bots powering up and referring to "LRC-V3" 1707 | -10/Mines | Entered Exiles 1707 | -10/Exiles | Accompanied by 3 allies 1728 | -10/Exiles | Discovered new exit (range 15) 1747 | -10/Exiles | Welcomed by 8R-AWN 1775 | -10/Exiles | Met EX-HEX 1816 | -10/Exiles | Met EX-BIN 1837 | -10/Exiles | Aligned with FarCom system 1839 | -10/Exiles | Given EX-Vault access code 1877 | -10/Exiles | Opened EX-Vault 1886 | -10/Exiles | Found Gui. Plasma Cannon 1927 | -10/Exiles | Warned to stay clear of 0b10 Research branches 1968 | -10/Exiles | Met EX-DEC 2125 | -10/Exiles | Discovered new exit (range 14) 2145 | -10/Exiles | Left Exiles lab with Gui. Plasma Cannon 2145 | -10/Exiles | Entered Mines 2145 | -9/Mines | Accompanied by 3 allies 2215 | -9/Mines | Discovered new exit (range 6) 2263 | -9/Mines | Found a Scrap Suit stashed away for nefarious purposes 2267 | -9/Mines | Found Scrap Suit 2303 | -9/Mines | Entered Materials 2303 | -8/Materials | Accompanied by 2 allies 2303 | -8/Materials | Evolved 4 slots: Propulsion x2, Utility x2 2304 | -8/Materials | Loaded intel: 19 interactive machine locations 2789 | -8/Materials | Discovered new exit (range 9) 3113 | -8/Materials | Lost 3 parts (2n1u) 3257 | -8/Materials | Entered Factory 3257 | -7/Factory | Evolved 2 slots: Propulsion x1, Utility x1 3779 | -7/Factory | Discovered new exit (range 13) 3841 | -7/Factory | Entered another Factory area 3841 | -6/Factory | Evolved 2 slots: Propulsion x2 3888 | -6/Factory | Discovered new exit (range 7) 3934 | -6/Factory | Entered another Factory area 3934 | -5/Factory | Evolved 2 slots: Utility x2 3959 | -5/Factory | Discovered new exit (range 19) 4074 | -5/Factory | Discovered new exit (range 11) 4347 | -5/Factory | Entered Upper Caves 4579 | -5/Upper Caves | Lost 3 parts (1p1n1u) 4822 | -5/Upper Caves | Learned 4 Factory zone layouts 4825 | -5/Upper Caves | Discovered new exit (range 5) 4827 | -5/Upper Caves | Entered another Upper Caves area 4844 | -5/Upper Caves | Spotted B-75 Beast 4853 | -5/Upper Caves | Discovered new exit (range 12) 4859 | -5/Upper Caves | Entered Factory 4859 | -4/Factory | Evolved 2 slots: Power x1, Utility x1 4860 | -4/Factory | Identified exit to Upper Caves 5197 | -4/Factory | Lost 6 parts (2p2u2w) 5388 | -4/Factory | Entered Upper Caves 5458 | -4/Upper Caves | Build established: Scavenger-Mutant 5561 | -4/Upper Caves | Attracted the attention of an 0b10 checkpoint 5590 | -4/Upper Caves | Learned 12 Research zone layouts 5648 | -4/Upper Caves | Discovered new exit (range 10) 5709 | -4/Upper Caves | Entered another Upper Caves area 5711 | -4/Upper Caves | Attracted the attention of an 0b10 checkpoint 5714 | -4/Upper Caves | Spotted B-86 Titan 5729 | -4/Upper Caves | Learned Research terminal intel 5743 | -4/Upper Caves | Discovered new exit (range 11) 5749 | -4/Upper Caves | Entered Research 5749 | -3/Research | Evolved 2 slots: Utility x2 5750 | -3/Research | Identified exit to Research 5751 | -3/Research | Loaded intel: 24 terminal locations 6090 | -3/Research | Identified exit to DSF 6194 | -3/Research | Entered DSF 6219 | -3/DSF | Additional patrols routed to DSF 6247 | -3/DSF | Discovered exit to Research (range 21) 6259 | -3/DSF | Entered Research 6259 | -2/Research | Evolved 2 slots: Utility x2 6475 | -2/Research | Identified exit to Access 6524 | -2/Research | Build established: Hacker-Mutant 6683 | -2/Research | Entered Access 6683 | -1/Access | Evolved 2 slots: Propulsion x1, Utility x1 7315 | -1/Access | Energy Cycler disabled 7649 | -1/Access | Core integrity fell below 50% 7661 | -1/Access | Core integrity fell below 20% 7664 | -1/Access | Destroyed by S-43 Plague with Heavy Machine Gun Last Messages --------------- 07624_ Adv. Cooling System destroyed. 07626_ T-07 Excavator destroyed. 07627_ Slug penetrates R-10 Processor. 07638_ Nuclear Pulse Array destroyed. 07640_ S-43 Plague destroyed. 07642_ Imp. Gyrokinetic Inverter destroyed. 07644_ Field Propulsion Array destroyed. 07644_ S-43 Plague destroyed. 07644_ C-30 ARC bursts open, deploying its payload. 07644_ G-73 Enforcer unfolds itself. 07644_ K-01 Serf destroyed. 07647_ K-01 Serf collects debris. 07647_ Graphene Brace destroyed. 07649_ Critical hit (Burn: +37). 07650_ K-01 Serf cleans the Longscan Aggregator. 07656_ Gyrokinetic Inverter destroyed. 07659_ S-43 Plague suffers critical hit (Destroy). 07659_ S-43 Plague destroyed. 07663_ Mak. Hacking Suite destroyed. 07664_ Gyrokinetic Inverter destroyed. Map ----- +----------------------------------------------------+ | #?????????????????????? != ### | | #??????????????????? #?? | | #???????????????????? #?? | | "" #??????????????????? #?? | | "" #??????????????????? #?? | | "" #???????????????????? #?? | | Y" #???????????????????? #?? | | "" #?????????????????????##+##################?? | | "" #?????????????????????? ????????????????????? | | "" #?###########???????????????????????????????? | | #?# #???????????????????????????????? | | #?# #???????????????????????????????? | | ###+#### #???????????????????????????????? | | # "#???????????????????????????????? | | # ""#???????????????????????????????? | | # ""#???????????????????????????????? | | + ""#???????????????????????????????? | | # ""#???????????????????????????????? | | # T"#???????????????????????????????? | | # ""#???????????????????????????????? | | ## ""#???????????????????????????????? | | ^ %## ""########????????????????????????? | | ! ## ""# #????????????????????????? | | !!* ## "# #????????????????????????# | | !!* ## # ########################?# | | ## # /@ + #?# | | ####+####### # # ### | | #??# # # ! ## | | "" #??######## s + ## | | T"" #??# =!* # s sss s# ## | | "" #??# =** # R %* s # ## | | #??# =** + sssss + "" ## | | #??# ####% ## "" ## | | * #??# / #??# ## """""" ## | | ####### #??# = #??# ## """""" ## | | # #??########??# p p ## "" ## | | # #????????????# ## "" ## | | + #????????????# g ## ## | | """ # #????????????# gpp ## ## | | """ # #????????????# p ## ## | | """ # #????????????# g ###"########## | | """ # ??????? s | | """ # ????? | | # ???? * | | # ????? % | | # ????? | | # ?????? " | | +###### ?????? %" | | ??????# ###+????????#####/######+########### | | ??????? #?????????????? ?????????????# | +----------------------------------------------------+ Best States ------------- Heat Dissipation 97 Energy Generation 41 Energy Capacity 350 Matter Stores 300 Matter Capacity 300 Sight Range 22 Terrain Scan Density 10 EM Shielding 4 Armor Coverage 375 Resistance: KI 30 Propulsion Shielding 66 Phase Shifting 10 Evasion (%) 62 Recoil Reduction 4 Offensive Hacking 31 Item Schematics ----------------- None Robot Schematics ------------------ None Fabricated ------------ Nothing Repaired ---------- Nothing Studied --------- Adv. Assault Cannon | -8/Materials | Hacked Alien Tech Used ----------------- None Achievements -------------- Explosive Keycard I Laugh At Your Crits Challenges ------------ None Game ------ Seed LightningBlinkFlakker Manual? 0 Play Time 01:54:46 Cumulative 43.0 hours Start 2026.07.24 @ 16:03:54 End 2026.07.24 @ 18:05:35 Sessions 2 Manual Loads 0 Difficulty Rogue Special Mode None Game No. 28 Rogue 28 Adventurer 0 Explorer 0 Win Type - Total 0 Types 0/0/0/0/0/0/0/0/0/0 Lore% 31 Gallery% 32 Achievement% 26 Wizard Run 0 Options --------- Layout 0 ASCII 0 Keyboard 0 Movement Numpad Keybinds 0 Fullscreen 1 Font 24/Smallcaps Map View 76x50 Zoom Use 0% Tactical HUD 1 Map Filters NONE Filters NONE Steam 1 RUN: a88e2f35-0629-4bd8-87fc-5698fc8a1300